bitfinex/quotes_SOLUSD_20251007
["timestamp","ask_amount","ask_price","bid_price","bid_amount"]
[1759830723838,0.65,230.29,230.23,32.35647521]
[1759830724048,4.3422223,230.3,230.19,0.2]
[1759830724049,0.65,230.28,230.22,10.87647521]
[1759830724342,0.65,230.28,230.22,20.8]
[1759830724552,0.65,230.27,230.22,20.8]
[1759830724744,0.65,230.26,230.22,20.8]
[1759830724953,0.65,230.25,230.22,20.8]
[1759830726634,0.65,230.29,230.23,0.68]
[1759830726934,4.99159683,230.33,230.24,10.87647521]
[1759830727137,4.99159683,230.33,230.25,0.68]
[1759830727138,4.34159683,230.33,230.25,0.68]
[1759830727342,0.65,230.32,230.25,0.68]
[1759830729155,23.50867802,230.34,230.26,10.87647521]
[1759830729156,4.34141555,230.34,230.26,10.87647521]
[1759830729329,4.34141555,230.34,230.27,0.68]
[1759830729847,4.99141555,230.34,230.27,0.68]
[1759830730160,0.65,230.34,230.27,0.68]
[1759830730869,20.8,230.39,230.28,10.87647521]
[1759830731033,0.65,230.37,230.31,20.8]
[1759830731476,0.65,230.36,230.31,20.8]
[1759830731634,0.65,230.35,230.28,10.87647521]
[1759830732139,0.65,230.34,230.28,10.87647521]
[1759830732673,0.65,230.34,230.28,11.55647521]
[1759830734595,0.65,230.33,230.25,0.68]
[1759830734756,0.65,230.33,230.26,10.87647521]
[1759830735082,0.65,230.32,230.26,10.87647521]
[1759830735265,4.99193012,230.32,230.26,10.87647521]
[1759830735655,4.99193012,230.32,230.26,11.55647521]
[1759830736082,0.65,230.32,230.27,0.68]
[1759830736375,0.65,230.34,230.28,0.68]
[1759830736553,0.65,230.33,230.28,0.68]
[1759830736755,0.65,230.32,230.28,0.68]
[1759830739065,0.65,230.31,230.25,10.87647521]
[1759830739786,0.65,230.3,230.25,10.87647521]
[1759830739969,0.65,230.29,230.25,10.87647521]
[1759830740280,0.65,230.31,230.25,11.55647521]
[1759830740770,4.34186965,230.32,230.26,0.68]
[1759830742486,20.8,230.37,230.27,10.87647521]
[1759830742669,0.65,230.36,230.28,0.68]
[1759830743389,4.34121988,230.35,230.28,0.68]
[1759830744085,0.65,230.38,230.29,10.87647521]
[1759830744268,0.65,230.38,230.3,0.68]
[1759830745562,4.99076335,230.38,230.3,0.68]
[1759830746707,15.84239977,230.38,230.3,0.68]
[1759830747576,4.99076335,230.38,230.3,0.68]
[1759830749811,15.84239977,230.38,230.3,0.68]
[1759830750615,15.84239977,230.38,230.29,10.87647521]
[1759830750781,3.35867802,230.37,230.25,0.68]
[1759830750981,3.35867802,230.37,230.26,10.87647521]
[1759830751190,0.65,230.36,230.26,10.87647521]
[1759830751391,0.71,230.35,230.27,20.8]
[1759830751690,0.71,230.34,230.26,0.66]
[1759830751910,15.19558892,230.33,230.24,0.66]
[1759830752092,0.71,230.32,230.26,10.87647521]
[1759830752286,0.71,230.31,230.26,10.87647521]
[1759830752491,0.71,230.31,230.27,0.66]
[1759830753718,5.05198774,230.31,230.27,0.66]
[1759830754306,0.71,230.3,230.26,10.87647521]
[1759830754628,0.71,230.3,230.26,11.53647521]
[1759830755296,4.34180581,230.32,230.26,10.87647521]
[1759830755504,5.05180581,230.32,230.26,11.53647521]
[1759830755700,4.34162539,230.33,230.27,0.66]
[1759830756433,5.05162539,230.33,230.27,0.66]
[1759830757336,0.71,230.36,230.28,10.87647521]
[1759830757533,5.05065457,230.38,230.3,10.87647521]
[1759830757702,5.05065457,230.38,230.31,0.66]
[1759830758412,5.05065457,230.38,230.25,20.8]
[1759830758413,15.90229099,230.38,230.29,0.66]
[1759830758713,15.90229099,230.38,230.3,10.87647521]
[1759830758914,0.71,230.37,230.3,10.87647521]
[1759830759115,0.71,230.36,230.3,10.87647521]
[1759830759307,0.71,230.35,230.3,10.87647521]
[1759830759627,0.71,230.35,230.31,0.66]
[1759830761629,0.69,230.34,230.27,10.87647521]
[1759830761818,0.69,230.34,230.29,10.87647521]
[1759830762402,0.69,230.34,230.29,11.53647521]
[1759830762607,5.03151021,230.34,230.29,10.87647521]
[1759830762932,5.03151021,230.34,230.29,11.53647521]
[1759830763233,5.03151021,230.34,230.29,10.87647521]
[1759830763529,5.03151021,230.34,230.29,11.53647521]
[1759830763826,5.03151021,230.34,230.3,0.66]
[1759830764713,0.69,230.33,230.29,10.87647521]
[1759830764914,0.69,230.33,230.29,11.53647521]
[1759830766423,0.69,230.35,230.3,0.66]
[1759830766630,4.34159683,230.33,230.29,10.87647521]
[1759830766814,5.03159683,230.33,230.29,10.87647521]
[1759830767205,5.03159683,230.33,230.29,11.53647521]
[1759830767942,0.69,230.32,230.26,11.53647521]
[1759830768636,0.69,230.31,230.26,11.53647521]
[1759830768840,0.69,230.3,230.26,0.66]
[1759830769921,15.19558892,230.33,230.26,0.66]
[1759830770117,0.69,230.32,230.25,10.87647521]
[1759830770322,4.34216239,230.3,230.25,10.87647521]
[1759830770521,5.03216239,230.3,230.25,11.53647521]
[1759830771034,0.69,230.29,230.25,0.66]
[1759830771237,0.69,230.28,230.23,32.33647521]
[1759830771645,0.69,230.28,230.24,0.66]
[1759830772137,5.03255369,230.28,230.24,0.66]
[1759830772443,5.03225479,230.3,230.25,0.66]
[1759830772741,0.69,230.3,230.26,0.66]
[1759830773448,4.34199432,230.31,230.26,0.66]
[1759830773639,0.69,230.3,230.26,0.66]
[1759830774242,5.03224724,230.3,230.27,0.66]
[1759830774544,5.03224724,230.3,230.25,0.66]
[1759830774742,5.03224724,230.3,230.26,0.66]
[1759830776236,5.03249709,230.29,230.24,0.66]
[1759830776628,5.03249709,230.29,230.25,0.66]
[1759830778140,0.69,230.29,230.25,0.66]
[1759830778654,10.85467201,230.32,230.23,31.67647521]
[1759830778946,0.69,230.31,230.26,0.66]
[1759830779123,0.69,230.3,230.26,0.66]
[1759830779320,11.54467201,230.32,230.27,0.66]
[1759830779526,10.85467201,230.32,230.28,0.66]
[1759830779723,0.69,230.31,230.26,0.66]
[1759830779926,0.69,230.31,230.27,0.66]
[1759830780236,0.69,230.3,230.23,31.67647521]
[1759830780439,0.69,230.3,230.24,0.66]
[1759830781143,5.03218804,230.3,230.24,0.66]
[1759830784352,5.03218804,230.3,230.22,0.66]
[1759830784541,5.03218804,230.3,230.23,10.87647521]
[1759830784860,0.71,230.29,230.23,10.87647521]
[1759830785057,0.71,230.28,230.23,10.87647521]
[1759830785355,0.71,230.27,230.23,0.66]
[1759830785849,0.71,230.29,230.24,0.66]
[1759830786050,0.71,230.31,230.25,0.66]
[1759830786240,5.05209601,230.31,230.25,0.66]
[1759830786751,0.71,230.31,230.25,0.66]
[1759830787833,5.05207306,230.31,230.25,0.66]
[1759830791270,0.71,230.31,230.26,10.87647521]
[1759830791452,0.71,230.3,230.26,0.66]
[1759830792034,0.71,230.34,230.28,10.87647521]
[1759830792370,0.71,230.34,230.23,25.14342413]
[1759830792371,5.05141408,230.34,230.29,0.66]
[1759830792544,0.71,230.33,230.29,0.66]
[1759830792958,0.71,230.32,230.24,15.2197559]
[1759830793269,0.71,230.32,230.25,11.53647521]
[1759830794271,0.71,230.32,230.26,0.66]
[1759830795170,4.34169688,230.33,230.26,0.66]
[1759830796653,0.71,230.33,230.26,0.66]
[1759830797471,0.71,230.33,230.28,10.87647521]
[1759830797768,0.71,230.32,230.28,11.53647521]
[1759830798288,0.71,230.32,230.28,22.41295042]
[1759830799356,4.34190739,230.32,230.28,22.41295042]
[1759830799564,0.71,230.31,230.24,11.53647521]
[1759830799857,0.71,230.3,230.27,10.87647521]
[1759830800474,4.34178195,230.33,230.27,11.53647521]
[1759830800649,4.34121988,230.35,230.28,0.66]
[1759830800853,0.71,230.34,230.28,0.66]
[1759830802480,4.34159683,230.33,230.28,0.66]
[1759830802776,4.34159683,230.33,230.29,0.66]
[1759830802960,5.05159683,230.33,230.29,0.66]
[1759830804485,0.71,230.32,230.29,0.66]
[1759830805467,4.34159683,230.33,230.29,0.66]
[1759830805670,5.05159683,230.33,230.29,0.66]
[1759830806072,0.71,230.32,230.24,10.87647521]
[1759830806269,0.71,230.32,230.28,0.66]
[1759830806587,4.34159683,230.33,230.28,0.66]
[1759830806588,0.71,230.31,230.28,10.87647521]
[1759830806790,0.71,230.3,230.28,10.87647521]
[1759830807978,5.05218458,230.3,230.28,10.87647521]
[1759830808678,4.34218458,230.3,230.27,10.85287963]
[1759830808881,0.71,230.29,230.24,11.53647521]
[1759830809078,0.71,230.29,230.26,10.87647521]
[1759830809384,4.34218458,230.3,230.26,10.87647521]
[1759830809595,4.34218458,230.3,230.26,11.53647521]
[1759830809762,5.05218458,230.3,230.26,11.53647521]
[1759830810387,0.71,230.29,230.26,10.87647521]
[1759830810580,0.71,230.28,230.26,10.87647521]
[1759830811689,15.19558892,230.33,230.26,10.87647521]
[1759830811982,4.34197386,230.31,230.26,10.87647521]
[1759830812292,0.68,230.3,230.26,10.87647521]
[1759830812676,0.68,230.29,230.26,10.87647521]
[1759830814197,5.02243693,230.29,230.26,10.87647521]
[1759830814369,5.02243693,230.29,230.26,11.54647521]
[1759830814569,4.34243693,230.29,230.26,10.87647521]
[1759830814867,4.34243693,230.29,230.27,0.67]
[1759830815069,4.34209835,230.31,230.28,0.67]
[1759830815988,5.02209835,230.31,230.26,11.54647521]
[1759830816172,5.02209835,230.31,230.27,0.67]
[1759830819097,4.34181999,230.32,230.28,0.67]
[1759830819271,4.34140835,230.34,230.28,0.67]
[1759830819473,5.02140835,230.34,230.28,0.67]
[1759830820378,5.02140835,230.34,230.29,10.87647521]
[1759830820584,5.02140835,230.34,230.3,0.67]
[1759830821389,0.68,230.33,230.29,10.87647521]
[1759830821701,0.68,230.33,230.29,11.54647521]
[1759830822378,0.68,230.32,230.28,10.87647521]
[1759830823177,0.68,230.32,230.28,11.54647521]
[1759830823391,4.34159683,230.33,230.29,0.67]
[1759830823892,5.02143187,230.34,230.3,0.67]
[1759830825390,4.34084299,230.37,230.31,10.87647521]
[1759830825701,0.68,230.41,230.33,10.87647521]
[1759830825896,0.68,230.43,230.35,10.87647521]
[1759830826092,4.33952438,230.44,230.37,10.87647521]
[1759830826305,0.1,230.45,230.39,10.87647521]
[1759830826807,0.1,230.45,230.4,2.50634963]
[1759830827174,0.1,230.45,230.41,0.67]
[1759830827407,0.1,230.45,230.42,0.67]
[1759830830627,0.1,230.45,230.43,10.87647521]
[1759830830930,0.1,230.45,230.44,11.58647521]
[1759830831102,0.1,230.45,230.44,13.32330246]
[1759830834031,0.1,230.45,230.44,12.61330246]
[1759830835810,0.1,230.45,230.44,13.32330246]
[1759830845043,5.14933608,230.45,230.4,10.87647521]
[1759830845216,0.71,230.44,230.4,10.87647521]
[1759830845416,0.71,230.44,230.42,10.94616606]
[1759830845721,4.43933608,230.45,230.4,10.87647521]
[1759830845929,0.71,230.44,230.41,4.43933608]
[1759830846335,4.43933608,230.45,230.41,4.43933608]
[1759830846542,0.71,230.43,230.41,4.43933608]
[1759830847145,0.71,230.42,230.41,4.43933608]
[1759830847353,0.71,230.42,230.2,34.03735778]
[1759830847354,0.71,230.42,230.37,10.87647521]
[1759830847532,0.71,230.42,230.38,4.33975966]
[1759830848828,4.33952438,230.44,230.38,4.33975966]
[1759830849031,0.71,230.43,230.38,4.33975966]
[1759830849233,0.71,230.42,230.38,4.33975966]
[1759830850443,5.05002746,230.42,230.38,4.33975966]
[1759830850642,5.05002746,230.42,230.38,4.99975966]
[1759830852043,0.1,230.45,230.39,11.53647521]
[1759830852234,0.71,230.44,230.39,11.53647521]
[1759830852440,0.71,230.43,230.39,24.56494241]
[1759830852618,0.71,230.42,230.39,23.90494241]
[1759830852824,0.71,230.42,230.37,0.66]
[1759830853024,0.71,230.42,230.38,4.99967526]
[1759830853236,5.04967526,230.44,230.38,4.99967526]
[1759830853433,5.04967526,230.44,230.38,0.66]
[1759830853650,5.04967526,230.44,230.39,10.84803251]
[1759830853954,0.71,230.43,230.39,10.84803251]
[1759830854337,0.71,230.43,230.39,11.50803251]
[1759830854651,5.04986577,230.43,230.39,0.66]
[1759830854853,5.04986577,230.43,230.39,4.99967526]
[1759830856743,5.04986577,230.43,230.39,0.66]
[1759830858152,0.71,230.43,230.4,0.66]
[1759830858340,4.33954681,230.44,230.4,0.66]
[1759830858654,5.04954681,230.44,230.4,0.66]
[1759830859536,4.43936127,230.45,230.41,0.66]
[1759830859756,0.1,230.45,230.41,0.66]
[1759830860362,0.1,230.45,230.42,10.87647521]
[1759830860865,0.1,230.45,230.43,0.66]
[1759830861164,0.1,230.45,230.44,10.87647521]
[1759830861369,0.1,230.45,230.35,20.8]
[1759830861370,0.1,230.45,230.42,10.87647521]
[1759830861682,0.1,230.45,230.43,0.66]
[1759830861828,0.1,230.45,230.42,10.87647521]
[1759830862026,0.81,230.45,230.42,10.87647521]
[1759830862231,0.71,230.44,230.39,0.66]
[1759830862452,0.71,230.44,230.4,11.53647521]
[1759830862953,4.43937316,230.45,230.41,0.66]
[1759830863379,4.43937316,230.45,230.42,0.66]
[1759830863547,5.14937316,230.45,230.42,0.66]
[1759830863880,5.14937316,230.45,230.4,0.66]
[1759830864036,5.14937316,230.45,230.41,0.66]
[1759830865573,0.71,230.44,230.39,10.87647521]
[1759830865779,0.71,230.43,230.39,11.53647521]
[1759830865951,0.71,230.43,230.39,0.66]
[1759830867655,4.339564,230.44,230.38,10.87647521]
[1759830867978,4.339564,230.44,230.39,0.66]
[1759830868266,5.049564,230.44,230.4,0.66]
[1759830869856,4.439416,230.45,230.41,0.66]
[1759830870166,5.149416,230.45,230.41,0.66]
[1759830870369,0.81,230.45,230.41,0.66]
[1759830871378,5.14934176,230.45,230.41,0.66]
[1759830871876,4.43934176,230.45,230.41,0.66]
[1759830872052,5.15934176,230.45,230.41,0.66]
[1759830872677,0.82,230.45,230.41,0.66]
[1759830873382,0.1,230.45,230.41,0.66]
[1759830873589,0.82,230.45,230.41,0.66]
[1759830873887,0.82,230.45,230.38,10.87647521]
[1759830874100,5.15941918,230.45,230.41,0.71]
[1759830874587,4.43941918,230.45,230.41,0.71]
[1759830874884,5.05952636,230.44,230.38,10.87647521]
[1759830875084,0.72,230.44,230.39,0.71]
[1759830875396,0.1,230.45,230.39,0.71]
[1759830875895,0.72,230.44,230.39,0.71]
[1759830876102,0.72,230.44,230.4,0.71]
[1759830876973,5.0595441,230.44,230.4,0.71]
[1759830877485,0.72,230.43,230.4,0.71]
[1759830878592,4.3395441,230.44,230.4,0.71]
[1759830878761,5.0595441,230.44,230.4,0.71]
[1759830880385,0.72,230.43,230.39,4.3395441]
[1759830880594,0.72,230.42,230.37,21.5]
[1759830880776,0.72,230.42,230.38,0.7]
[1759830881291,5.0595441,230.44,230.39,0.7]
[1759830881500,0.72,230.43,230.39,0.7]
[1759830881693,5.05976025,230.43,230.39,0.7]
[1759830881864,0.72,230.43,230.39,0.7]
[1759830883381,0.72,230.44,230.4,0.7]
[1759830883701,0.72,230.44,230.38,4.33954987]
[1759830883873,0.72,230.44,230.41,0.7]
[1759830884992,0.1,230.45,230.41,0.7]
[1759830885200,0.1,230.45,230.42,0.7]
[1759830885674,0.1,230.45,230.43,0.7]
[1759830886173,0.1,230.45,230.4,4.33910231]
[1759830886376,0.1,230.45,230.41,0.7]
[1759830886689,0.72,230.44,230.4,4.33910231]
[1759830886884,0.72,230.44,230.4,0.7]
[1759830887398,0.72,230.43,230.39,1.73705352]
[1759830887703,0.72,230.43,230.39,2.43705352]
[1759830888082,0.72,230.43,230.39,1.73705352]
[1759830888284,5.05972642,230.43,230.39,2.43705352]
[1759830888603,0.72,230.42,230.38,21.5]
[1759830889070,0.1,230.45,230.39,0.7]
[1759830889275,0.1,230.45,230.39,5.03972642]
[1759830889476,0.1,230.45,230.4,0.7]
[1759830889684,0.82,230.45,230.41,0.7]
[1759830890997,0.82,230.45,230.42,0.7]
[1759830890998,0.1,230.45,230.42,0.7]
[1759830891198,0.1,230.45,230.43,0.7]
[1759830892682,0.1,230.45,230.41,4.33898242]
[1759830892997,0.1,230.45,230.42,0.7]
[1759830893575,0.1,230.45,230.43,0.7]
[1759830894082,0.1,230.45,230.43,21.5]
[1759830894302,0.1,230.45,230.44,2.43675183]
[1759830895714,0.1,230.45,230.42,0.7]
[1759830895910,0.1,230.45,230.4,20.8]
[1759830896105,0.82,230.45,230.42,1.73697809]
[1759830896402,0.1,230.45,230.42,2.43697809]
[1759830897225,0.1,230.45,230.42,1.73697809]
[1759830897226,0.72,230.44,230.42,1.73697809]
[1759830897394,0.1,230.45,230.41,0.7]
[1759830897711,0.72,230.44,230.41,0.7]
[1759830898113,0.82,230.45,230.41,0.7]
[1759830901133,0.1,230.45,230.42,0.7]
[1759830901305,0.78,230.45,230.39,25.85896831]
[1759830901507,0.1,230.45,230.4,0.71]
[1759830902216,0.78,230.45,230.41,0.71]
[1759830902526,0.78,230.45,230.42,0.71]
[1759830903709,0.78,230.45,230.39,25.85896831]
[1759830903929,0.78,230.45,230.41,0.71]
[1759830904238,0.78,230.45,230.42,0.71]
[1759830904602,0.1,230.45,230.43,0.71]
[1759830904815,0.1,230.45,230.44,0.71]
[1759830906329,0.1,230.45,230.42,4.33898347]
[1759830906330,5.11937246,230.45,230.39,0.71]
[1759830906698,5.11937246,230.45,230.39,5.72877904]
[1759830907510,5.11937246,230.45,230.39,5.01877904]
[1759830907711,5.11937246,230.45,230.4,0.71]
[1759830907912,0.68,230.44,230.4,0.71]
[1759830908809,0.68,230.44,230.41,0.71]
[1759830911333,0.1,230.45,230.41,0.71]
[1759830911537,0.1,230.45,230.42,0.71]
[1759830911918,0.78,230.45,230.4,0.71]
[1759830912118,0.78,230.45,230.41,0.71]
[1759830913022,5.11935913,230.45,230.41,0.71]
[1759830913729,4.43935913,230.45,230.38,20.8]
[1759830913937,0.68,230.44,230.39,0.71]
[1759830914139,0.68,230.44,230.4,0.71]
[1759830914839,0.68,230.44,230.38,20.8]
[1759830914840,0.68,230.44,230.41,0.71]
[1759830915143,0.68,230.44,230.39,0.71]
[1759830915319,0.68,230.44,230.4,0.71]
[1759830916142,0.68,230.44,230.39,20.8]
[1759830916343,0.68,230.44,230.41,0.71]
[1759830917645,0.1,230.45,230.42,0.71]
[1759830917943,0.1,230.45,230.42,5.04915594]
[1759830918142,0.1,230.45,230.43,0.71]
[1759830918738,0.1,230.45,230.44,1.73682725]
[1759830918946,0.1,230.45,230.43,0.71]
[1759830919125,0.1,230.45,230.44,1.73682725]
[1759830919334,0.1,230.45,230.44,2.44682725]
[1759830923446,0.1,230.45,230.44,34.12330246]
[1759830925640,0.1,230.45,230.44,22.53682725]
[1759830926546,0.78,230.45,230.43,20.8]
[1759830926855,0.78,230.45,230.43,22.53690266]
[1759830927055,0.78,230.45,230.43,1.73690266]
[1759830927351,0.78,230.45,230.42,1.73690266]
[1759830927829,0.78,230.45,230.42,2.44690266]
[1759830928020,0.1,230.45,230.42,2.44690266]
[1759830929535,0.78,230.45,230.42,1.73690266]
[1759830930040,0.1,230.45,230.42,2.44690266]
[1759830931850,0.1,230.45,230.42,1.73690266]
[1759830932039,0.71,230.44,230.42,1.73690266]
[1759830932241,0.71,230.43,230.4,20.8]
[1759830932441,0.71,230.43,230.4,31.64703473]
[1759830932646,0.71,230.43,230.4,32.30703473]
[1759830932854,5.14940237,230.45,230.4,32.30703473]
[1759830933035,0.81,230.45,230.41,0.66]
[1759830933463,0.1,230.45,230.42,0.66]
[1759830933626,0.1,230.45,230.43,0.66]
[1759830933933,0.1,230.45,230.42,0.66]
[1759830934133,0.81,230.45,230.42,4.33877372]
[1759830934334,0.1,230.45,230.42,4.99877372]
[1759830934566,0.1,230.45,230.42,0.66]
[1759830934755,0.1,230.45,230.4,20.8]
[1759830934932,0.1,230.45,230.43,0.66]
[1759830937265,0.1,230.45,230.42,5.04897855]
[1759830937435,0.1,230.45,230.42,5.70897855]
[1759830937753,0.1,230.45,230.42,5.74897855]
[1759830938346,0.1,230.45,230.42,0.7]
[1759830938549,0.1,230.45,230.43,1.73682725]
[1759830939363,0.1,230.45,230.44,0.7]
[1759830940858,0.1,230.45,230.43,1.73682725]
[1759830941565,0.1,230.45,230.43,2.43682725]
[1759830942070,0.1,230.45,230.43,1.73682725]
[1759830942375,0.79,230.45,230.4,0.7]
[1759830942566,0.79,230.45,230.41,5.72896351]
[1759830942871,5.12936717,230.45,230.41,5.72896351]
[1759830943169,0.69,230.44,230.4,0.7]
[1759830943377,4.43936717,230.45,230.41,0.7]
[1759830943671,0.69,230.43,230.38,0.7]
[1759830943978,4.43936717,230.45,230.38,0.7]
[1759830943979,0.69,230.42,230.38,0.7]
[1759830946471,4.3399061,230.42,230.37,10.87647521]
[1759830946771,0.69,230.41,230.38,0.7]
[1759830947185,0.69,230.4,230.35,0.7]
[1759830947475,0.69,230.39,230.36,10.87647521]
[1759830947848,4.3399061,230.42,230.33,28.08914938]
[1759830948074,15.18965872,230.42,230.34,0.7]
[1759830948273,0.69,230.41,230.34,11.57647521]
[1759830948448,4.34046616,230.39,230.34,11.57647521]
[1759830948868,5.03046616,230.39,230.35,0.7]
[1759830949255,0.69,230.43,230.37,20.8]
[1759830949460,0.69,230.43,230.37,0.7]
[1759830949660,0.69,230.43,230.36,10.84975262]
[1759830949866,0.69,230.42,230.36,0.7]
[1759830950670,4.3400894,230.41,230.36,0.7]
[1759830951055,0.69,230.4,230.36,0.7]
[1759830951573,5.02992147,230.42,230.37,0.7]
[1759830952072,0.69,230.41,230.37,0.7]
[1759830952279,0.69,230.41,230.34,20.8]
[1759830952457,0.69,230.41,230.36,0.7]
[1759830953477,0.69,230.4,230.36,0.7]
[1759830955575,0.69,230.39,230.31,7.98914938]
[1759830955776,0.69,230.38,230.32,0.7]
[1759830956178,0.69,230.38,230.3,10.87647521]
[1759830956374,0.69,230.37,230.3,0.7]
[1759830956576,0.69,230.37,230.29,0.7]
[1759830957579,5.03102861,230.37,230.29,0.7]
[1759830959570,0.69,230.37,230.29,0.7]
[1759830960294,0.69,230.37,230.3,10.87647521]
[1759830960469,4.34069627,230.38,230.31,0.7]
[1759830960666,0.69,230.37,230.31,0.7]
[1759830960983,0.69,230.37,230.31,11.57647521]
[1759830961368,5.0604599,230.4,230.32,0.67]
[1759830961569,0.72,230.4,230.32,0.67]
[1759830961788,5.06035408,230.4,230.32,0.67]
[1759830963768,20.8,230.43,230.33,10.87647521]
[1759830963971,0.72,230.42,230.34,0.67]
[1759830964470,0.72,230.42,230.34,11.54647521]
[1759830964786,0.72,230.42,230.35,0.67]
[1759830965372,0.82,230.45,230.38,10.87647521]
[1759830965574,0.82,230.45,230.39,0.67]
[1759830965875,0.1,230.45,230.39,0.67]
[1759830966086,0.1,230.45,230.4,1.73697809]
[1759830966286,0.1,230.45,230.41,0.67]
[1759830966590,0.82,230.45,230.41,0.67]
[1759830967892,0.72,230.44,230.4,1.73697809]
[1759830968080,0.72,230.43,230.4,1.73697809]
[1759830968279,0.72,230.42,230.4,1.73697809]
[1759830968495,4.43933718,230.45,230.4,1.73697809]
[1759830968893,0.72,230.44,230.4,1.73697809]
[1759830969095,0.72,230.43,230.4,1.73697809]
[1759830969399,0.72,230.42,230.33,21.47]
[1759830969569,0.72,230.41,230.34,13.0307308]
[1759830969770,4.34046616,230.39,230.33,21.47]
[1759830969990,5.06046616,230.39,230.33,0.67]
[1759830970192,5.06046616,230.39,230.33,34.5007308]
[1759830970575,0.72,230.38,230.33,0.67]
[1759830970773,0.72,230.37,230.32,0.67]
[1759830971095,0.72,230.37,230.33,0.67]
[1759830971295,0.72,230.37,230.33,21.47]
[1759830972177,0.72,230.39,230.33,20.8]
[1759830972386,0.72,230.39,230.33,21.47]
[1759830973304,5.06065032,230.39,230.33,21.47]
[1759830973596,0.72,230.38,230.31,10.84967776]
[1759830973781,4.34065032,230.39,230.3,21.47]
[1759830973782,0.72,230.37,230.3,21.47]
[1759830973990,0.72,230.36,230.3,21.47]
[1759830974191,0.72,230.35,230.3,5.01065032]
[1759830974393,0.72,230.37,230.31,0.67]
[1759830974707,0.72,230.37,230.31,21.47]
[1759830976114,5.06100796,230.37,230.31,21.47]
[1759830977400,0.72,230.37,230.32,0.67]
[1759830977596,0.72,230.37,230.33,0.67]
[1759830978711,0.72,230.37,230.31,32.32116541]
[1759830978907,0.72,230.37,230.32,0.67]
[1759830979085,0.72,230.37,230.33,0.67]
[1759830979287,5.06087596,230.37,230.33,0.67]
[1759830980589,4.34066527,230.38,230.34,0.67]
[1759830981005,4.34066527,230.38,230.35,0.67]
[1759830981511,4.34066527,230.38,230.32,10.85083473]
[1759830981713,5.06066527,230.38,230.33,0.67]
[1759830981899,0.72,230.37,230.32,10.85083473]
[1759830982100,4.34066527,230.38,230.32,11.52083473]
[1759830982312,0.72,230.37,230.32,11.52083473]
[1759830982491,0.72,230.36,230.32,11.52083473]
[1759830982695,5.06121988,230.35,230.32,10.85083473]
[1759830983016,0.72,230.34,230.29,21.47]
[1759830983212,4.34121988,230.35,230.3,10.85197677]
[1759830983415,5.06121988,230.35,230.3,11.52197677]
[1759830984014,0.72,230.34,230.3,11.52197677]
[1759830984316,0.72,230.34,230.3,0.67]
[1759830984519,4.34121988,230.35,230.31,0.67]
[1759830984814,0.72,230.35,230.31,10.85197677]
[1759830985816,5.06127968,230.35,230.31,11.52197677]
[1759830986006,0.72,230.35,230.31,11.52197677]
[1759830986316,5.06100644,230.37,230.32,0.67]
[1759830986533,0.72,230.36,230.32,0.67]
[1759830987208,4.34121988,230.35,230.32,0.67]